[Event "Titled Tuesday Blitz August 22 Late 2023"]
[White "Bazilius, Augustinas"]
[Black "Quirke, Jeffrey"]
[WhiteFideId "12832251"]
[BlackFideId "2013029"]
[WhiteElo "2444"]
[BlackElo "2172"]
[Result "1-0"]
[Round "2"]
[TimeControl "180+1"]
[Date "2023.08.22"]
[WhiteClock "0:00:07"]
[BlackClock "0:00:04"]
[Board "206"]

1. d4 {[%clk 0:03:00]}  e6 {[%clk 0:03:00]} 2. c4 {[%clk 0:03:00]}  Nf6 {[%clk 0:03:00]} 3. Nf3 {[%clk 0:02:59]}  b6 {[%clk 0:02:59]} 4. g3 {[%clk 0:02:59]}  Bb7 {[%clk 0:02:58]} 5. Bg2 {[%clk 0:02:59]}  Be7 {[%clk 0:02:57]} 6. O-O {[%clk 0:02:59]}  O-O {[%clk 0:02:57]} 7. Nc3 {[%clk 0:02:58]}  Na6 {[%clk 0:02:57]} 8. Re1 {[%clk 0:02:50]}  d5 {[%clk 0:02:56]} 9. b3 {[%clk 0:02:31]}  c6 {[%clk 0:02:55]} 10. Bb2 {[%clk 0:02:31]}  Rc8 {[%clk 0:02:52]} 11. e4 {[%clk 0:01:46]}  dxe4 {[%clk 0:02:39]} 12. Nxe4 {[%clk 0:01:47]}  c5 {[%clk 0:02:39]} 13. Nxf6+ {[%clk 0:01:27]}  Bxf6 {[%clk 0:02:39]} 14. Qd2 {[%clk 0:01:12]}  cxd4 {[%clk 0:02:34]} 15. Rad1 {[%clk 0:00:56]}  Qc7 {[%clk 0:02:27]} 16. Bxd4 {[%clk 0:00:53]}  Rfd8 {[%clk 0:02:24]} 17. Qb2 {[%clk 0:00:54]}  Bxd4 {[%clk 0:02:23]} 18. Rxd4 {[%clk 0:00:55]}  Rxd4 {[%clk 0:02:22]} 19. Qxd4 {[%clk 0:00:55]}  Rd8 {[%clk 0:02:20]} 20. Qc3 {[%clk 0:00:47]}  Qc5 {[%clk 0:02:11]} 21. Nh4 {[%clk 0:00:27]}  Bxg2 {[%clk 0:02:09]} 22. Nxg2 {[%clk 0:00:28]}  Qa3 {[%clk 0:01:53]} 23. Nf4 {[%clk 0:00:16]}  g6 {[%clk 0:01:38]} 24. Qa1 {[%clk 0:00:01]}  Nb4 {[%clk 0:01:30]} 25. Rd1 {[%clk 0:00:02]}  Rxd1+ {[%clk 0:01:00]} 26. Qxd1 {[%clk 0:00:03]}  Nxa2 {[%clk 0:01:00]} 27. Qd8+ {[%clk 0:00:03]}  Qf8 {[%clk 0:01:01]} 28. Qd2 {[%clk 0:00:03]}  Nb4 {[%clk 0:00:53]} 29. Qd7 {[%clk 0:00:03]}  a5 {[%clk 0:00:52]} 30. h4 {[%clk 0:00:04]}  h5 {[%clk 0:00:50]} 31. Nd3 {[%clk 0:00:03]}  Nxd3 {[%clk 0:00:46]} 32. Qxd3 {[%clk 0:00:03]}  Qc5 {[%clk 0:00:46]} 33. Qd8+ {[%clk 0:00:03]}  Kg7 {[%clk 0:00:46]} 34. Qd3 {[%clk 0:00:03]}  e5 {[%clk 0:00:44]} 35. Kg2 {[%clk 0:00:03]}  Kf6 {[%clk 0:00:40]} 36. Kf3 {[%clk 0:00:02]}  Ke6 {[%clk 0:00:39]} 37. Ke2 {[%clk 0:00:01]}  Qd6 {[%clk 0:00:24]} 38. Qc2 {[%clk 0:00:02]}  f5 {[%clk 0:00:22]} 39. Qc3 {[%clk 0:00:02]}  Qc5 {[%clk 0:00:12]} 40. Qc1 {[%clk 0:00:02]}  Qd4 {[%clk 0:00:12]} 41. Qg5 {[%clk 0:00:03]}  Qe4+ {[%clk 0:00:12]} 42. Kf1 {[%clk 0:00:03]}  Qb1+ {[%clk 0:00:12]} 43. Kg2 {[%clk 0:00:03]}  Qxb3 {[%clk 0:00:12]} 44. Qxg6+ {[%clk 0:00:04]}  Ke7 {[%clk 0:00:11]} 45. Qg7+ {[%clk 0:00:04]}  Kd6 {[%clk 0:00:11]} 46. Qf6+ {[%clk 0:00:04]}  Kc5 {[%clk 0:00:11]} 47. Qxe5+ {[%clk 0:00:05]}  Kb4 {[%clk 0:00:11]} 48. Qd6+ {[%clk 0:00:05]}  Kc3 {[%clk 0:00:11]} 49. Qe5+ {[%clk 0:00:05]}  Kc2 {[%clk 0:00:10]} 50. Qxf5+ {[%clk 0:00:06]}  Kb2 {[%clk 0:00:10]} 51. Qe5+ {[%clk 0:00:06]}  Ka2 {[%clk 0:00:08]} 52. Qxh5 {[%clk 0:00:03]}  a4 {[%clk 0:00:09]} 53. Qe2+ {[%clk 0:00:03]}  Qb2 {[%clk 0:00:08]} 54. Qe4 {[%clk 0:00:02]}  a3 {[%clk 0:00:08]} 55. h5 {[%clk 0:00:02]}  Ka1 {[%clk 0:00:08]} 56. Qe1+ {[%clk 0:00:02]}  Qb1 {[%clk 0:00:07]} 57. Qc3+ {[%clk 0:00:03]}  Qb2 {[%clk 0:00:07]} 58. Qe1+ {[%clk 0:00:04]}  Ka2 {[%clk 0:00:07]} 59. h6 {[%clk 0:00:04]}  Kb3 {[%clk 0:00:07]} 60. h7 {[%clk 0:00:04]}  a2 {[%clk 0:00:07]} 61. Qe3+ {[%clk 0:00:04]}  Kb4 {[%clk 0:00:07]} 62. Qxb6+ {[%clk 0:00:04]}  Ka3 {[%clk 0:00:07]} 63. Qxb2+ {[%clk 0:00:05]}  Kxb2 {[%clk 0:00:07]} 64. h8=Q+ {[%clk 0:00:06]}  Kb1 {[%clk 0:00:07]} 65. c5 {[%clk 0:00:06]}  a1=Q {[%clk 0:00:04]} 66. Qxa1+ {[%clk 0:00:07]} 1-0


[Site "https://www.chess.com"]

[Event "Titled Tuesday Blitz August 22 Late 2023"]
[White "Petersson, Kjell"]
[Black "Rangel, Daniel"]
[WhiteFideId "1705148"]
[BlackFideId "2124475"]
[WhiteElo "2162"]
[BlackElo "2444"]
[Result "0-1"]
[Round "2"]
[TimeControl "180+1"]
[Date "2023.08.22"]
[WhiteClock "0:01:01"]
[BlackClock "0:01:35"]
[Board "207"]

1. d4 {[%clk 0:03:00]}  Nf6 {[%clk 0:02:59]} 2. Bf4 {[%clk 0:03:01]}  e6 {[%clk 0:03:00]} 3. e3 {[%clk 0:03:01]}  c5 {[%clk 0:03:00]} 4. c3 {[%clk 0:02:59]}  b6 {[%clk 0:03:00]} 5. Nd2 {[%clk 0:02:56]}  Bb7 {[%clk 0:03:00]} 6. Ngf3 {[%clk 0:02:55]}  Be7 {[%clk 0:03:01]} 7. Bd3 {[%clk 0:02:50]}  O-O {[%clk 0:03:01]} 8. Nc4 {[%clk 0:02:44]}  b5 {[%clk 0:02:55]} 9. Ncd2 {[%clk 0:02:33]}  c4 {[%clk 0:02:55]} 10. Bc2 {[%clk 0:02:33]}  d6 {[%clk 0:02:53]} 11. b3 {[%clk 0:02:33]}  cxb3 {[%clk 0:02:52]} 12. axb3 {[%clk 0:02:32]}  d5 {[%clk 0:02:45]} 13. O-O {[%clk 0:02:29]}  a5 {[%clk 0:02:39]} 14. Qe2 {[%clk 0:02:26]}  b4 {[%clk 0:02:35]} 15. c4 {[%clk 0:02:15]}  dxc4 {[%clk 0:02:33]} 16. Nxc4 {[%clk 0:02:15]}  Nd5 {[%clk 0:02:28]} 17. Qd3 {[%clk 0:02:10]}  g6 {[%clk 0:02:25]} 18. Bh6 {[%clk 0:02:08]}  Re8 {[%clk 0:02:23]} 19. Nfe5 {[%clk 0:01:58]}  Nc3 {[%clk 0:02:18]} 20. f3 {[%clk 0:01:51]}  Nc6 {[%clk 0:02:12]} 21. Ng4 {[%clk 0:01:46]}  Bg5 {[%clk 0:02:01]} 22. Bxg5 {[%clk 0:01:31]}  Qxg5 {[%clk 0:02:02]} 23. Nd6 {[%clk 0:01:27]}  Ba6 {[%clk 0:01:55]} 24. Nc4 {[%clk 0:01:19]}  Rad8 {[%clk 0:01:53]} 25. Qe4 {[%clk 0:01:08]}  Nxe4 {[%clk 0:01:44]} 26. Bxe4 {[%clk 0:01:01]}  Bb5 {[%clk 0:01:35]} 0-1


[Site "https://www.chess.com"]

[Event "Titled Tuesday Blitz August 22 Late 2023"]
[White "Cheng, Xiao"]
[Black "Oliveira, Tiago Batista"]
[WhiteFideId "2022915"]
[BlackFideId "2108291"]
[WhiteElo "2442"]
[BlackElo "2143"]
[Result "1/2-1/2"]
[Round "2"]
[TimeControl "180+1"]
[Date "2023.08.22"]
[WhiteClock "0:00:39"]
[BlackClock "0:00:07"]
[Board "210"]

1. e4 {[%clk 0:03:00]}  e5 {[%clk 0:02:59]} 2. Nf3 {[%clk 0:03:00]}  Nc6 {[%clk 0:02:58]} 3. Bc4 {[%clk 0:03:00]}  Bc5 {[%clk 0:02:54]} 4. d3 {[%clk 0:02:56]}  Nf6 {[%clk 0:02:48]} 5. O-O {[%clk 0:02:51]}  h6 {[%clk 0:02:42]} 6. h3 {[%clk 0:02:51]}  O-O {[%clk 0:02:37]} 7. c3 {[%clk 0:02:49]}  d6 {[%clk 0:02:34]} 8. Re1 {[%clk 0:02:48]}  Bb6 {[%clk 0:02:32]} 9. Nbd2 {[%clk 0:02:46]}  Re8 {[%clk 0:02:27]} 10. Nf1 {[%clk 0:02:46]}  d5 {[%clk 0:02:25]} 11. exd5 {[%clk 0:02:43]}  Nxd5 {[%clk 0:02:26]} 12. Ng3 {[%clk 0:02:42]}  Nf6 {[%clk 0:01:49]} 13. b4 {[%clk 0:02:27]}  Be6 {[%clk 0:01:32]} 14. Qb3 {[%clk 0:02:26]}  Bxc4 {[%clk 0:01:30]} 15. Qxc4 {[%clk 0:02:25]}  Qd5 {[%clk 0:01:29]} 16. Be3 {[%clk 0:02:22]}  Rad8 {[%clk 0:01:28]} 17. Rad1 {[%clk 0:02:11]}  Bxe3 {[%clk 0:01:13]} 18. fxe3 {[%clk 0:02:09]}  Qxc4 {[%clk 0:01:06]} 19. dxc4 {[%clk 0:02:08]}  e4 {[%clk 0:00:59]} 20. Nd4 {[%clk 0:02:06]}  Ne5 {[%clk 0:00:59]} 21. c5 {[%clk 0:02:05]}  Nd3 {[%clk 0:00:57]} 22. Re2 {[%clk 0:02:04]}  Nd5 {[%clk 0:00:57]} 23. Nxe4 {[%clk 0:01:55]}  N3xb4 {[%clk 0:00:26]} 24. cxb4 {[%clk 0:01:54]}  Rxe4 {[%clk 0:00:25]} 25. Nc2 {[%clk 0:01:44]}  c6 {[%clk 0:00:24]} 26. Rd3 {[%clk 0:01:33]}  Rde8 {[%clk 0:00:24]} 27. g3 {[%clk 0:01:25]}  Nxb4 {[%clk 0:00:21]} 28. Nxb4 {[%clk 0:01:18]}  Rxb4 {[%clk 0:00:22]} 29. Rb3 {[%clk 0:01:18]}  Rxb3 {[%clk 0:00:20]} 30. axb3 {[%clk 0:01:18]}  Re5 {[%clk 0:00:20]} 31. b4 {[%clk 0:01:13]}  Re4 {[%clk 0:00:18]} 32. Ra2 {[%clk 0:01:09]}  a6 {[%clk 0:00:16]} 33. Kf2 {[%clk 0:01:05]}  Rxb4 {[%clk 0:00:16]} 34. Kf3 {[%clk 0:01:05]}  Rc4 {[%clk 0:00:15]} 35. Rb2 {[%clk 0:01:05]}  Rxc5 {[%clk 0:00:14]} 36. Rxb7 {[%clk 0:01:05]}  Rb5 {[%clk 0:00:14]} 37. Ra7 {[%clk 0:01:04]}  a5 {[%clk 0:00:15]} 38. Ke4 {[%clk 0:01:03]}  Kh7 {[%clk 0:00:13]} 39. Rxf7 {[%clk 0:01:02]}  a4 {[%clk 0:00:09]} 40. Ra7 {[%clk 0:01:01]}  Rb4+ {[%clk 0:00:09]} 41. Kd3 {[%clk 0:01:00]}  Rb3+ {[%clk 0:00:08]} 42. Kd4 {[%clk 0:01:00]}  a3 {[%clk 0:00:08]} 43. h4 {[%clk 0:00:59]}  Kg6 {[%clk 0:00:09]} 44. g4 {[%clk 0:00:59]}  h5 {[%clk 0:00:09]} 45. g5 {[%clk 0:00:58]}  Kf5 {[%clk 0:00:08]} 46. Ra6 {[%clk 0:00:58]}  Kg4 {[%clk 0:00:07]} 47. Rxc6 {[%clk 0:00:58]}  a2 {[%clk 0:00:08]} 48. Ra6 {[%clk 0:00:58]}  Rb2 {[%clk 0:00:08]} 49. Kc3 {[%clk 0:00:58]}  Re2 {[%clk 0:00:08]} 50. Ra4+ {[%clk 0:00:58]}  Kg3 {[%clk 0:00:08]} 51. Kd3 {[%clk 0:00:57]}  Rb2 {[%clk 0:00:08]} 52. g6 {[%clk 0:00:56]}  Kh3 {[%clk 0:00:07]} 53. Kc3 {[%clk 0:00:56]}  Re2 {[%clk 0:00:08]} 54. Kd3 {[%clk 0:00:56]}  Rb2 {[%clk 0:00:08]} 55. Kc3 {[%clk 0:00:44]}  Rg2 {[%clk 0:00:08]} 56. Kb3 {[%clk 0:00:42]}  Rxg6 {[%clk 0:00:08]} 57. Rxa2 {[%clk 0:00:41]}  Kxh4 {[%clk 0:00:08]} 58. Kc4 {[%clk 0:00:41]}  Rg3 {[%clk 0:00:08]} 59. Kd4 {[%clk 0:00:41]}  g5 {[%clk 0:00:08]} 60. e4 {[%clk 0:00:41]}  g4 {[%clk 0:00:07]} 61. e5 {[%clk 0:00:42]}  Rg1 {[%clk 0:00:07]} 62. Re2 {[%clk 0:00:40]}  Rd1+ {[%clk 0:00:07]} 63. Ke3 {[%clk 0:00:40]}  Rd8 {[%clk 0:00:08]} 64. Kf2 {[%clk 0:00:38]}  g3+ {[%clk 0:00:07]} 65. Kf3 {[%clk 0:00:38]}  Rf8+ {[%clk 0:00:07]} 66. Kg2 {[%clk 0:00:38]}  Kg4 {[%clk 0:00:05]} 67. e6 {[%clk 0:00:38]}  Re8 {[%clk 0:00:04]} 68. e7 {[%clk 0:00:38]}  h4 {[%clk 0:00:05]} 69. Re4+ {[%clk 0:00:38]}  Kg5 {[%clk 0:00:05]} 70. Kh3 {[%clk 0:00:38]}  Kh5 {[%clk 0:00:04]} 71. Re5+ {[%clk 0:00:38]}  Kg6 {[%clk 0:00:05]} 72. Kxh4 {[%clk 0:00:38]}  Kf6 {[%clk 0:00:05]} 73. Re1 {[%clk 0:00:37]}  Rxe7 {[%clk 0:00:06]} 74. Rf1+ {[%clk 0:00:38]}  Kg6 {[%clk 0:00:06]} 75. Kxg3 {[%clk 0:00:38]}  Re5 {[%clk 0:00:06]} 76. Rf4 {[%clk 0:00:38]}  Rg5+ {[%clk 0:00:07]} 77. Rg4 {[%clk 0:00:39]}  Rxg4+ {[%clk 0:00:07]} 78. Kxg4 {[%clk 0:00:39]} 1/2-1/2


[Site "https://www.chess.com"]

[Event "Titled Tuesday Blitz August 22 Late 2023"]
[White "Phillips, Rene"]
[Black "Bochnicka, Vladimir"]
[WhiteFideId "2056275"]
[BlackFideId "14943450"]
[WhiteElo "2099"]
[BlackElo "2437"]
[Result "0-1"]
[Round "2"]
[TimeControl "180+1"]
[Date "2023.08.22"]
[WhiteClock "0:00:14"]
[BlackClock "0:00:33"]
[Board "215"]

1. d4 {[%clk 0:03:00]}  Nf6 {[%clk 0:02:59]} 2. Bf4 {[%clk 0:03:01]}  d6 {[%clk 0:02:59]} 3. e3 {[%clk 0:03:02]}  g6 {[%clk 0:03:00]} 4. h3 {[%clk 0:03:02]}  Bg7 {[%clk 0:03:00]} 5. Nf3 {[%clk 0:03:03]}  O-O {[%clk 0:03:01]} 6. Nbd2 {[%clk 0:03:03]}  Nc6 {[%clk 0:03:02]} 7. Be2 {[%clk 0:03:02]}  Nd7 {[%clk 0:03:02]} 8. O-O {[%clk 0:03:02]}  e5 {[%clk 0:03:03]} 9. Bh2 {[%clk 0:03:01]}  Qe7 {[%clk 0:02:56]} 10. c3 {[%clk 0:03:01]}  e4 {[%clk 0:02:50]} 11. Ne1 {[%clk 0:03:00]}  f5 {[%clk 0:02:51]} 12. Nc2 {[%clk 0:02:57]}  Nf6 {[%clk 0:02:39]} 13. a4 {[%clk 0:02:54]}  g5 {[%clk 0:02:33]} 14. b4 {[%clk 0:02:52]}  Qf7 {[%clk 0:02:22]} 15. c4 {[%clk 0:02:47]}  Ne7 {[%clk 0:02:18]} 16. c5 {[%clk 0:02:42]}  d5 {[%clk 0:02:05]} 17. Bxc7 {[%clk 0:02:39]}  Ng6 {[%clk 0:02:03]} 18. Bd6 {[%clk 0:02:38]}  f4 {[%clk 0:02:01]} 19. Bxf8 {[%clk 0:02:36]}  Bxf8 {[%clk 0:02:00]} 20. exf4 {[%clk 0:02:22]}  gxf4 {[%clk 0:02:01]} 21. f3 {[%clk 0:01:47]}  e3 {[%clk 0:01:55]} 22. Nb1 {[%clk 0:01:37]}  Nh5 {[%clk 0:01:55]} 23. Bd3 {[%clk 0:01:33]}  Nh4 {[%clk 0:01:53]} 24. Nc3 {[%clk 0:01:27]}  Qg7 {[%clk 0:01:46]} 25. Qe2 {[%clk 0:01:17]}  Bxh3 {[%clk 0:01:45]} 26. Ne1 {[%clk 0:01:06]}  Ng3 {[%clk 0:01:42]} 27. Qc2 {[%clk 0:01:01]}  Qxd4 {[%clk 0:01:42]} 28. Ne2 {[%clk 0:00:58]}  Nxe2+ {[%clk 0:01:36]} 29. Qxe2 {[%clk 0:00:51]}  Qxa1 {[%clk 0:01:33]} 30. gxh3 {[%clk 0:00:51]}  Bg7 {[%clk 0:01:25]} 31. Ng2 {[%clk 0:00:49]}  Qf6 {[%clk 0:01:11]} 32. Nxh4 {[%clk 0:00:38]}  Qxh4 {[%clk 0:01:12]} 33. Qg2 {[%clk 0:00:25]}  Kh8 {[%clk 0:01:11]} 34. Kh1 {[%clk 0:00:23]}  Rg8 {[%clk 0:01:10]} 35. Rg1 {[%clk 0:00:22]}  Qf2 {[%clk 0:00:46]} 36. Qg4 {[%clk 0:00:20]}  e2 {[%clk 0:00:37]} 37. Bxh7 {[%clk 0:00:19]}  e1=Q {[%clk 0:00:32]} 38. Rxe1 {[%clk 0:00:18]}  Qxe1+ {[%clk 0:00:33]} 39. Kh2 {[%clk 0:00:18]}  Qg3+ {[%clk 0:00:32]} 40. Qxg3 {[%clk 0:00:14]}  fxg3+ {[%clk 0:00:33]} 0-1


[Site "https://www.chess.com"]

[Event "Titled Tuesday Blitz August 22 Late 2023"]
[White "Zaczek, Jonathon"]
[Black "Avila Rodriguez, Joshua Ad"]
[WhiteFideId "2607123"]
[BlackFideId "5126444"]
[WhiteElo "2094"]
[BlackElo "2434"]
[Result "1-0"]
[Round "2"]
[TimeControl "180+1"]
[Date "2023.08.22"]
[WhiteClock "0:00:09"]
[BlackClock "0:00:02"]
[Board "216"]

1. e4 {[%clk 0:03:00]}  e5 {[%clk 0:02:58]} 2. Nf3 {[%clk 0:03:00]}  Nc6 {[%clk 0:02:58]} 3. Bb5 {[%clk 0:03:00]}  a6 {[%clk 0:02:57]} 4. Ba4 {[%clk 0:03:00]}  d6 {[%clk 0:02:48]} 5. O-O {[%clk 0:02:53]}  Bd7 {[%clk 0:02:49]} 6. c3 {[%clk 0:02:51]}  g6 {[%clk 0:02:47]} 7. Re1 {[%clk 0:02:47]}  Bg7 {[%clk 0:02:46]} 8. h3 {[%clk 0:02:41]}  Nf6 {[%clk 0:02:45]} 9. d4 {[%clk 0:02:38]}  O-O {[%clk 0:02:40]} 10. a3 {[%clk 0:02:32]}  Re8 {[%clk 0:02:35]} 11. Nbd2 {[%clk 0:02:30]}  h6 {[%clk 0:02:11]} 12. Bc2 {[%clk 0:02:21]}  Nh7 {[%clk 0:01:38]} 13. Nf1 {[%clk 0:01:58]}  Qe7 {[%clk 0:01:21]} 14. d5 {[%clk 0:01:38]}  Nb8 {[%clk 0:01:18]} 15. c4 {[%clk 0:01:38]}  f5 {[%clk 0:01:16]} 16. b4 {[%clk 0:01:32]}  Rf8 {[%clk 0:01:09]} 17. Bb2 {[%clk 0:01:12]}  f4 {[%clk 0:01:05]} 18. Rc1 {[%clk 0:01:05]}  g5 {[%clk 0:01:05]} 19. c5 {[%clk 0:01:02]}  h5 {[%clk 0:00:59]} 20. N3d2 {[%clk 0:00:54]}  g4 {[%clk 0:00:56]} 21. hxg4 {[%clk 0:00:53]}  hxg4 {[%clk 0:00:55]} 22. Nc4 {[%clk 0:00:49]}  Qh4 {[%clk 0:00:43]} 23. Qd3 {[%clk 0:00:38]}  Rf6 {[%clk 0:00:38]} 24. g3 {[%clk 0:00:33]}  Qh5 {[%clk 0:00:35]} 25. gxf4 {[%clk 0:00:21]}  Rh6 {[%clk 0:00:30]} 26. Ng3 {[%clk 0:00:18]}  Qh2+ {[%clk 0:00:30]} 27. Kf1 {[%clk 0:00:18]}  exf4 {[%clk 0:00:30]} 28. Bxg7 {[%clk 0:00:11]}  Kxg7 {[%clk 0:00:13]} 29. Qc3+ {[%clk 0:00:08]}  Kg8 {[%clk 0:00:12]} 30. e5 {[%clk 0:00:08]}  fxg3 {[%clk 0:00:11]} 31. fxg3 {[%clk 0:00:06]}  Qh1+ {[%clk 0:00:10]} 32. Ke2 {[%clk 0:00:06]}  Rh2+ {[%clk 0:00:10]} 33. Kd1 {[%clk 0:00:06]}  Qxd5+ {[%clk 0:00:08]} 34. Bd3 {[%clk 0:00:05]}  Bf5 {[%clk 0:00:06]} 35. Re3 {[%clk 0:00:03]}  Nc6 {[%clk 0:00:03]} 36. exd6 {[%clk 0:00:02]}  Bxd3 {[%clk 0:00:02]} 37. Rxd3 {[%clk 0:00:03]}  Qh1+ {[%clk 0:00:02]} 38. Qe1 {[%clk 0:00:01]}  Qxe1+ {[%clk 0:00:03]} 39. Kxe1 {[%clk 0:00:01]}  Rh1+ {[%clk 0:00:03]} 40. Kd2 {[%clk 0:00:02]}  Rxc1 {[%clk 0:00:04]} 41. Kxc1 {[%clk 0:00:03]}  cxd6 {[%clk 0:00:04]} 42. Nxd6 {[%clk 0:00:03]}  Ne5 {[%clk 0:00:02]} 43. Rd5 {[%clk 0:00:03]}  Nf3 {[%clk 0:00:02]} 44. Re5 {[%clk 0:00:03]}  Rf8 {[%clk 0:00:02]} 45. Rd5 {[%clk 0:00:03]}  Nh2 {[%clk 0:00:01]} 46. Nxb7 {[%clk 0:00:03]}  Rf7 {[%clk 0:00:02]} 47. c6 {[%clk 0:00:04]}  Kg7 {[%clk 0:00:02]} 48. Rd7 {[%clk 0:00:04]}  Rxd7 {[%clk 0:00:02]} 49. cxd7 {[%clk 0:00:05]}  Nf6 {[%clk 0:00:01]} 50. d8=Q {[%clk 0:00:06]}  Ne4 {[%clk 0:00:01]} 51. Qc7+ {[%clk 0:00:06]}  Kg6 {[%clk 0:00:01]} 52. Qb6+ {[%clk 0:00:07]}  Kf5 {[%clk 0:00:01]} 53. Qxa6 {[%clk 0:00:08]}  Nd6 {[%clk 0:00:02]} 54. Qe2 {[%clk 0:00:08]}  Ne4 {[%clk 0:00:02]} 55. Qxh2 {[%clk 0:00:08]}  Ke5 {[%clk 0:00:03]} 56. Qh4 {[%clk 0:00:09]}  Kd4 {[%clk 0:00:02]} 57. Qxg4 {[%clk 0:00:09]} 1-0


[Site "https://www.chess.com"]

[Event "Titled Tuesday Blitz August 22 Late 2023"]
[White "Dwilewicz, Katarzyna"]
[Black "Navyblue1"]
[WhiteFideId "1148486"]
[WhiteElo "2427"]
[BlackElo "2023"]
[Result "1-0"]
[Round "2"]
[TimeControl "180+1"]
[Date "2023.08.22"]
[WhiteClock "0:01:22"]
[BlackClock "0:00:13"]
[Board "219"]

1. e4 {[%clk 0:03:00]}  c5 {[%clk 0:02:58]} 2. Nf3 {[%clk 0:03:00]}  d6 {[%clk 0:02:58]} 3. d4 {[%clk 0:02:58]}  cxd4 {[%clk 0:02:58]} 4. Nxd4 {[%clk 0:02:58]}  Nf6 {[%clk 0:02:57]} 5. Nc3 {[%clk 0:02:59]}  a6 {[%clk 0:02:55]} 6. g3 {[%clk 0:02:59]}  e5 {[%clk 0:02:53]} 7. Nde2 {[%clk 0:02:58]}  Be7 {[%clk 0:02:39]} 8. Bg2 {[%clk 0:02:59]}  O-O {[%clk 0:02:38]} 9. O-O {[%clk 0:02:59]}  Be6 {[%clk 0:02:37]} 10. a4 {[%clk 0:02:58]}  Nbd7 {[%clk 0:02:28]} 11. h3 {[%clk 0:02:58]}  Rc8 {[%clk 0:02:14]} 12. Be3 {[%clk 0:02:53]}  Qc7 {[%clk 0:01:08]} 13. Qd2 {[%clk 0:02:48]}  Nc5 {[%clk 0:01:07]} 14. Kh2 {[%clk 0:02:38]}  Rfd8 {[%clk 0:00:54]} 15. b4 {[%clk 0:02:17]}  Ncd7 {[%clk 0:00:37]} 16. a5 {[%clk 0:02:13]}  Qc4 {[%clk 0:00:34]} 17. Rab1 {[%clk 0:02:06]}  h6 {[%clk 0:00:20]} 18. Rb2 {[%clk 0:02:00]}  Ra8 {[%clk 0:00:18]} 19. Rd1 {[%clk 0:01:54]}  Rdb8 {[%clk 0:00:18]} 20. f4 {[%clk 0:01:39]}  exf4 {[%clk 0:00:17]} 21. gxf4 {[%clk 0:01:39]}  Qc7 {[%clk 0:00:16]} 22. Nd4 {[%clk 0:01:30]}  Bc4 {[%clk 0:00:15]} 23. Nf5 {[%clk 0:01:25]}  Bf8 {[%clk 0:00:16]} 24. Nxd6 {[%clk 0:01:24]}  Bxd6 {[%clk 0:00:16]} 25. Qxd6 {[%clk 0:01:24]}  Qxd6 {[%clk 0:00:16]} 26. Rxd6 {[%clk 0:01:25]}  Nf8 {[%clk 0:00:16]} 27. e5 {[%clk 0:01:24]}  Ne8 {[%clk 0:00:16]} 28. Rd4 {[%clk 0:01:22]}  Ne6 {[%clk 0:00:13]} 29. Rxc4 {[%clk 0:01:22]} 1-0


[Site "https://www.chess.com"]

[Event "Titled Tuesday Blitz August 22 Late 2023"]
[White "Shohat, Yotam"]
[Black "Adan Bermudez, Sergio"]
[WhiteFideId "2813955"]
[BlackFideId "2292726"]
[WhiteElo "2425"]
[BlackElo "1991"]
[Result "1-0"]
[Round "2"]
[TimeControl "180+1"]
[Date "2023.08.22"]
[WhiteClock "0:01:15"]
[BlackClock "0:00:09"]
[Board "221"]

1. e4 {[%clk 0:03:00]}  e5 {[%clk 0:02:57]} 2. Nf3 {[%clk 0:03:01]}  Nc6 {[%clk 0:02:57]} 3. Nc3 {[%clk 0:03:00]}  Nf6 {[%clk 0:02:56]} 4. d4 {[%clk 0:03:01]}  exd4 {[%clk 0:02:55]} 5. Nxd4 {[%clk 0:03:02]}  Bb4 {[%clk 0:02:51]} 6. Nxc6 {[%clk 0:03:02]}  bxc6 {[%clk 0:02:51]} 7. Bd3 {[%clk 0:03:03]}  d5 {[%clk 0:02:49]} 8. Bd2 {[%clk 0:03:03]}  O-O {[%clk 0:02:44]} 9. O-O {[%clk 0:02:59]}  Bxc3 {[%clk 0:02:35]} 10. Bxc3 {[%clk 0:02:59]}  dxe4 {[%clk 0:02:34]} 11. Bxf6 {[%clk 0:02:58]}  Qxf6 {[%clk 0:02:34]} 12. Bxe4 {[%clk 0:02:59]}  Ba6 {[%clk 0:02:30]} 13. Re1 {[%clk 0:02:34]}  Rad8 {[%clk 0:02:19]} 14. Qh5 {[%clk 0:02:23]}  g6 {[%clk 0:02:18]} 15. Qa5 {[%clk 0:02:23]}  c5 {[%clk 0:01:30]} 16. Qxc5 {[%clk 0:02:12]}  Qb6 {[%clk 0:01:15]} 17. Qxb6 {[%clk 0:02:10]}  axb6 {[%clk 0:01:10]} 18. Rad1 {[%clk 0:02:11]}  Rfe8 {[%clk 0:01:03]} 19. f3 {[%clk 0:01:21]}  Kf8 {[%clk 0:01:00]} 20. Kf2 {[%clk 0:01:14]}  f5 {[%clk 0:00:57]} 21. Bc6 {[%clk 0:01:14]}  Rxe1 {[%clk 0:00:25]} 22. Kxe1 {[%clk 0:01:15]}  Rxd1+ {[%clk 0:00:19]} 23. Kxd1 {[%clk 0:01:15]}  Ke7 {[%clk 0:00:19]} 24. Kd2 {[%clk 0:01:13]}  Kd6 {[%clk 0:00:20]} 25. Ba4 {[%clk 0:01:12]}  Bc4 {[%clk 0:00:19]} 26. Bb3 {[%clk 0:01:12]}  Bxb3 {[%clk 0:00:18]} 27. axb3 {[%clk 0:01:13]}  c5 {[%clk 0:00:18]} 28. c4 {[%clk 0:01:11]}  Ke5 {[%clk 0:00:17]} 29. Kc3 {[%clk 0:01:11]}  Kf4 {[%clk 0:00:16]} 30. b4 {[%clk 0:01:11]}  Ke3 {[%clk 0:00:16]} 31. bxc5 {[%clk 0:01:11]}  bxc5 {[%clk 0:00:16]} 32. b4 {[%clk 0:01:12]}  cxb4+ {[%clk 0:00:13]} 33. Kxb4 {[%clk 0:01:13]}  Kf2 {[%clk 0:00:12]} 34. c5 {[%clk 0:01:13]}  Kxg2 {[%clk 0:00:13]} 35. c6 {[%clk 0:01:14]}  Kxf3 {[%clk 0:00:13]} 36. c7 {[%clk 0:01:15]}  Kg2 {[%clk 0:00:13]} 37. c8=Q {[%clk 0:01:15]}  f4 {[%clk 0:00:09]} 38. Qg4+ {[%clk 0:01:15]} 1-0


[Site "https://www.chess.com"]

[Event "Titled Tuesday Blitz August 22 Late 2023"]
[White "Silva Lucena, Cristian"]
[Black "Buker, Muhittin"]
[WhiteFideId "2232588"]
[BlackFideId "6301770"]
[WhiteElo "2423"]
[BlackElo "1982"]
[Result "1-0"]
[Round "2"]
[TimeControl "180+1"]
[Date "2023.08.22"]
[WhiteClock "0:01:44"]
[BlackClock "0:00:40"]
[Board "222"]

1. e4 {[%clk 0:03:00]}  e5 {[%clk 0:02:58]} 2. Nf3 {[%clk 0:03:00]}  Nc6 {[%clk 0:02:56]} 3. Bb5 {[%clk 0:03:00]}  a6 {[%clk 0:02:56]} 4. Ba4 {[%clk 0:03:00]}  Nf6 {[%clk 0:02:52]} 5. O-O {[%clk 0:03:00]}  Be7 {[%clk 0:02:51]} 6. Re1 {[%clk 0:02:58]}  b5 {[%clk 0:02:51]} 7. Bb3 {[%clk 0:02:58]}  O-O {[%clk 0:02:51]} 8. a4 {[%clk 0:02:57]}  Rb8 {[%clk 0:02:48]} 9. d3 {[%clk 0:02:52]}  d6 {[%clk 0:02:44]} 10. axb5 {[%clk 0:02:52]}  axb5 {[%clk 0:02:43]} 11. Nc3 {[%clk 0:02:53]}  Bg4 {[%clk 0:02:42]} 12. Be3 {[%clk 0:02:40]}  Nh5 {[%clk 0:02:17]} 13. h3 {[%clk 0:02:27]}  Bxf3 {[%clk 0:02:03]} 14. Qxf3 {[%clk 0:02:28]}  g6 {[%clk 0:02:03]} 15. Nd5 {[%clk 0:02:25]}  Kg7 {[%clk 0:01:58]} 16. Ra6 {[%clk 0:02:18]}  Qd7 {[%clk 0:01:53]} 17. Rxc6 {[%clk 0:02:15]}  Qxc6 {[%clk 0:01:50]} 18. Nxe7 {[%clk 0:02:15]}  Qd7 {[%clk 0:01:47]} 19. Nd5 {[%clk 0:02:07]}  c6 {[%clk 0:01:46]} 20. Nc3 {[%clk 0:02:02]}  Ra8 {[%clk 0:01:43]} 21. Ne2 {[%clk 0:01:56]}  f5 {[%clk 0:01:36]} 22. d4 {[%clk 0:01:52]}  f4 {[%clk 0:01:25]} 23. Bd2 {[%clk 0:01:51]}  exd4 {[%clk 0:01:23]} 24. Nxd4 {[%clk 0:01:52]}  Rf6 {[%clk 0:01:08]} 25. Bc3 {[%clk 0:01:50]}  b4 {[%clk 0:01:06]} 26. Ne6+ {[%clk 0:01:50]}  Kf7 {[%clk 0:00:40]} 27. Nc5+ {[%clk 0:01:44]} 1-0


[Site "https://www.chess.com"]